fUSD/lending_fUSD_20250124
["ID","MTS","AMOUNT","RATE_DAILY","PERIOD"]
[350267371,1737752957264,-2096.95919621,0.000163,2]
[350267372,1737752957286,-2096.95919621,0.000163,2]
[350267373,1737752957307,-2096.95919621,0.000163,2]
[350267374,1737752957328,-2096.95919621,0.000163,2]
[350267375,1737752957349,-2096.95919621,0.00016348,2]
[350267376,1737752957371,-150.0,0.00016439,2]
[350267377,1737752957392,-2096.95919621,0.0001659,2]
[350267378,1737752957413,-1000.0,0.00016756,2]
[350267379,1737752957435,-2096.95919621,0.00016831,2]
[350267380,1737752958257,-250.0,0.00016971,2]
[350267381,1737752958277,-410.16,0.00016995,2]
[350267382,1737752958298,-4496.14,0.00017037,2]
[350267383,1737752958320,-346.6,0.00017049,2]
[350267384,1737752958343,-2096.95919621,0.00017072,2]
[350267388,1737753031580,-250.0,0.00017126,2]
[350267389,1737753031590,-4234.71,0.00017248,2]
[350267390,1737753031601,-1529.06,0.00017248,2]
[350267391,1737753031614,-1500.0,0.00017267,2]
[350267392,1737753031623,-2096.95919621,0.00017314,2]
[350267393,1737753031634,-687.36,0.00017371,2]
[350267394,1737753031644,-557.67,0.00017408,2]
[350267395,1737753031653,-2096.95919621,0.00017555,2]
[350267396,1737753031665,-753.99394615,0.00017797,2]
[350267397,1737753031678,-1342.96525006,0.00017797,2]
[350267398,1737753031689,-156.57,0.00017985,30]
[350267399,1737753031699,-284.55895773,0.00018003,2]
[350267400,1737753031711,-1015.61204227,0.00018003,2]
[350267401,1737753031720,-967.40501481,0.00018038,2]
[350267402,1737753031732,-1129.5541814,0.00018038,2]
[350267403,1737753031742,-247.45,0.00018039,2]
[350267404,1737753031752,-251.32,0.00018039,2]
[350267405,1737753031761,-149.48162622,0.00018039,2]
[350267406,1737753031779,-100.18837378,0.00018039,2]
[350267407,1737753031788,-249.79,0.00018139,2]
[350267408,1737753031797,-247.53,0.00018139,2]
[350267409,1737753031807,-248.1,0.00018139,2]
[350267410,1737753031816,-253.62,0.00018139,2]
[350267411,1737753031825,-254.12,0.00018139,2]
[350267412,1737753031835,-246.19,0.00018139,2]
[350267413,1737753031844,-245.83,0.00018139,2]
[350267414,1737753031854,-249.48,0.00018139,2]
[350267415,1737753031864,-251.06,0.00018139,2]
[350267416,1737753031874,-105.01862622,0.00018139,2]
[350267417,1737753031890,-140.71137378,0.00018139,2]
[350267418,1737753031900,-500.0,0.00018139,2]
[350267419,1737753031909,-700.0,0.00018139,2]
[350267420,1737753031921,-1157.07569115,0.00018279,2]
[350267421,1737753031941,-477.9266994,0.00018279,2]
[350267422,1737753031952,-461.95680566,0.00018279,2]
[350267423,1737753031962,-197.81,0.00018408,2]
[350267424,1737753031971,-2096.95919621,0.00018521,2]
[350267425,1737753031984,-2168.0,0.000186,2]
[350267426,1737753031994,-1500.1450593,0.00018762,2]
[350267427,1737753032010,-596.81413691,0.00018762,2]
[350267428,1737753032019,-104.44840916,0.000188,2]
[350267429,1737753032035,-3485.69168214,0.000188,2]
[350267430,1737753032045,-1000.0,0.0001885,2]
[350267431,1737753032054,-155.54784802,0.00018886,2]
[350267432,1737753032063,-264.71,0.00018898,2]
[350267433,1737753032073,-9059.61797007,0.00018932,2]
[350267434,1737753032093,-2039.9433496,0.00018932,2]
[350267435,1737753032103,-500.0,0.00018986,2]
[350267436,1737753032112,-2096.95919621,0.00019003,2]
[350267437,1737753032122,-1789.9807,0.00019031,2]
[350267438,1737753032132,-1794.8885,0.00019032,2]
[350267439,1737753032143,-1396.4435,0.00019032,2]
[350267441,1737753032152,-424.557,0.00019033,2]
[350267443,1737753032165,-155.54784793,0.00019058,2]
[350267445,1737753032175,-428.31,0.00019122,2]
[350267446,1737753032185,-244.37004,0.0001913,2]
[350267447,1737753032195,-500.0,0.0001913,2]
[350267448,1737753032205,-464.481138,0.0001913,2]
[350267449,1737753032215,-500.0,0.0001913,2]
[350267450,1737753032225,-500.0,0.0001913,2]
[350267451,1737753032235,-500.0,0.0001913,2]
[350267452,1737753032246,-500.0,0.0001913,2]
[350267453,1737753032255,-715.62,0.0001913,2]
[350267454,1737753032265,-500.0,0.0001913,2]
[350267455,1737753032275,-500.0,0.0001913,2]
[350267456,1737753032284,-548.89872826,0.0001913,2]
[350267586,1737753037591,-351.13127174,0.0001913,2]
[350267588,1737753037604,-500.0,0.0001913,2]
[350267590,1737753037616,-500.0,0.0001913,2]
[350267592,1737753037626,-643.05,0.0001913,2]
[350267594,1737753037635,-500.0,0.0001913,2]
[350267596,1737753037645,-1397.92,0.0001913,2]
[350267598,1737753037655,-500.0,0.0001913,2]
[350267600,1737753037664,-608.81,0.0001913,2]
[350267602,1737753037675,-500.0,0.0001913,2]
[350267604,1737753037686,-500.0,0.0001913,2]
[350267606,1737753037695,-500.0,0.0001913,2]
[350267608,1737753037705,-500.0,0.0001913,2]
[350267610,1737753037714,-500.0,0.0001913,2]
[350267612,1737753037723,-500.0,0.0001913,2]
[350267614,1737753037732,-915.65,0.0001913,2]
[350267616,1737753037742,-500.0,0.0001913,2]
[350267618,1737753037751,-500.0,0.0001913,2]
[350267620,1737753037760,-702.77,0.0001913,2]
[350267622,1737753037770,-500.0,0.0001913,2]
[350267624,1737753037779,-500.0,0.0001913,2]
[350267626,1737753037789,-469.36912683,0.0001913,2]
[350267629,1737753037814,-472.65087317,0.0001913,2]
[350267631,1737753037823,-500.0,0.0001913,2]
[350267633,1737753037833,-500.0,0.0001913,2]
[350267635,1737753037844,-500.0,0.0001913,2]
[350267637,1737753037853,-1091.08,0.0001913,2]
[350267639,1737753037863,-500.0,0.0001913,2]
[350267641,1737753037873,-500.0,0.0001913,2]
[350267643,1737753037883,-500.0,0.0001913,2]
[350267645,1737753037893,-500.0,0.0001913,2]
[350267647,1737753037903,-500.0,0.0001913,2]
[350267649,1737753037912,-500.0,0.0001913,2]
[350267651,1737753037924,-500.0,0.0001913,2]
[350267653,1737753037933,-500.0,0.0001913,2]
[350267655,1737753037942,-500.0,0.0001913,2]
[350267657,1737753037951,-500.0,0.0001913,2]
[350267659,1737753037961,-500.0,0.0001913,2]
[350267661,1737753037970,-534.14,0.0001913,2]
[350267663,1737753037979,-500.0,0.0001913,2]
[350267665,1737753037988,-198.73,0.0001913,2]
[350267667,1737753037997,-500.0,0.0001913,2]
[350267669,1737753038007,-500.0,0.0001913,2]
[350267671,1737753038016,-500.0,0.0001913,2]
[350267673,1737753038026,-500.0,0.00019131,2]
[350267676,1737753038036,-500.0,0.00019131,2]
[350267679,1737753038046,-500.0,0.00019131,2]
[350267682,1737753038055,-500.0,0.00019131,2]
[350267685,1737753038065,-183.99891704,0.00019131,2]
[350267688,1737753038074,-500.0,0.00019131,2]
[350267691,1737753038083,-500.0,0.00019131,2]
[350267693,1737753038093,-500.0,0.00019131,2]
[350267695,1737753038102,-500.0,0.00019131,2]
[350267696,1737753038110,-500.0,0.00019131,2]
[350267697,1737753038119,-500.0,0.00019131,2]
[350267699,1737753038129,-500.0,0.00019131,2]
[350267702,1737753038139,-500.0,0.00019131,2]
[350267704,1737753038149,-500.0,0.00019131,2]
[350267705,1737753038158,-500.0,0.00019131,2]
[350267708,1737753038169,-500.0,0.00019131,2]
[350267710,1737753038179,-500.0,0.00019131,2]
[350267711,1737753038188,-500.0,0.00019131,2]
[350267714,1737753038198,-500.0,0.00019131,2]
[350267715,1737753038207,-500.0,0.00019131,2]
[350267717,1737753038217,-500.0,0.00019131,2]
[350267720,1737753038226,-500.0,0.00019131,2]
[350267721,1737753038236,-503.12365871,0.00019131,2]
[350267723,1737753038245,-318.39679173,0.00019131,2]
[350267725,1737753038255,-811.08,0.00019131,2]
[350267727,1737753038264,-500.0,0.00019131,2]
[350267729,1737753038274,-500.0,0.00019131,2]
[350267731,1737753038284,-500.0,0.00019131,2]
[350267733,1737753038293,-500.0,0.00019131,2]
[350267734,1737753038303,-500.0,0.00019131,2]
[350267735,1737753038312,-500.0,0.00019131,2]
[350267736,1737753038320,-204.90952584,0.00019131,2]
[350267737,1737753038329,-531.81468188,0.00019131,2]
[350267738,1737753038338,-500.0,0.00019131,2]
[350267739,1737753038347,-500.0,0.00019131,2]
[350267740,1737753038356,-500.0,0.00019131,2]
[350267741,1737753038365,-500.0,0.00019131,2]
[350267743,1737753038374,-500.0,0.00019131,2]
[350267745,1737753038383,-248.4341347,0.00019131,2]
[350267747,1737753038392,-500.0,0.00019131,2]
[350267749,1737753038402,-483.3750366,0.00019131,2]
[350267751,1737753038411,-523.87697902,0.00019131,2]
[350267753,1737753038423,-500.0,0.00019131,2]
[350267755,1737753038433,-500.0,0.00019131,2]
[350267757,1737753038442,-500.0,0.00019131,2]
[350267759,1737753038451,-507.48484842,0.00019131,2]
[350267761,1737753038461,-222.08000317,0.00019131,2]
[350267763,1737753038471,-500.0,0.00019131,2]
[350267765,1737753038480,-500.0,0.00019131,2]
[350267767,1737753038489,-500.0,0.00019131,2]
[350267769,1737753038499,-500.0,0.00019131,2]
[350267771,1737753038509,-565.0089185,0.00019131,2]
[350267773,1737753038518,-500.0,0.00019131,2]
[350267775,1737753038528,-507.78403963,0.00019131,2]
[350267777,1737753038537,-500.0,0.00019131,2]
[350267779,1737753038546,-500.0,0.00019131,2]
[350267781,1737753038555,-500.0,0.00019131,2]
[350267783,1737753038565,-200.0,0.00019131,2]
[350267785,1737753038574,-500.0,0.00019131,2]
[350267787,1737753038583,-544.09654321,0.00019131,2]
[350267789,1737753038593,-500.0,0.00019131,2]
[350267791,1737753038605,-500.0,0.00019131,2]
[350267793,1737753038615,-500.0,0.00019131,2]
[350267794,1737753038624,-312.71424839,0.00019131,2]
[350267797,1737753038639,-187.28575161,0.00019131,2]
[350267814,1737753038809,-500.0,0.00019131,2]
[350267815,1737753038819,-500.0,0.00019131,2]
[350267816,1737753038828,-500.0,0.00019131,2]
[350267817,1737753038840,-500.0,0.00019131,2]
[350267818,1737753038850,-500.0,0.00019131,2]
[350267819,1737753038859,-500.0,0.00019131,2]
[350267820,1737753038869,-500.0,0.00019131,2]
[350267821,1737753038878,-500.0,0.00019131,2]
[350267822,1737753038888,-500.0,0.00019131,2]
[350267824,1737753038897,-500.0,0.00019131,2]
[350267826,1737753038907,-500.0,0.00019131,2]
[350267827,1737753038918,-500.0,0.00019131,2]
[350267829,1737753038927,-500.0,0.00019131,2]
[350267831,1737753038936,-500.0,0.00019131,2]
[350267833,1737753038946,-500.0,0.00019131,2]
[350267835,1737753038955,-500.0,0.00019131,2]
[350267836,1737753038965,-500.0,0.00019131,2]
[350267837,1737753038974,-500.0,0.00019131,2]
[350267838,1737753038984,-500.0,0.00019131,2]
[350267839,1737753038994,-500.0,0.00019131,2]
[350267840,1737753039003,-500.0,0.00019131,2]
[350267841,1737753039013,-500.0,0.00019131,2]
[350267842,1737753039022,-500.0,0.00019131,2]
[350267843,1737753039032,-500.0,0.00019131,2]
[350267844,1737753039041,-500.0,0.00019131,2]
[350267845,1737753039051,-500.0,0.00019131,2]
[350267846,1737753039060,-500.0,0.00019131,2]
[350267847,1737753039070,-500.0,0.00019131,2]
[350267848,1737753039079,-500.0,0.00019131,2]
[350267849,1737753039089,-596.45266775,0.00019131,2]
[350267850,1737753039098,-500.0,0.00019131,2]
[350267851,1737753039107,-500.0,0.00019131,2]
[350267852,1737753039116,-500.0,0.00019131,2]
[350267853,1737753039126,-210.53471146,0.00019131,2]
[350267854,1737753039135,-500.0,0.00019131,2]
[350267855,1737753039145,-500.0,0.00019131,2]
[350267856,1737753039155,-500.0,0.00019131,2]
[350267857,1737753039164,-500.0,0.00019131,2]
[350267858,1737753039177,-500.0,0.00019131,2]
[350267859,1737753039187,-500.0,0.00019131,2]
[350267860,1737753039197,-500.0,0.00019131,2]
[350267861,1737753039207,-500.0,0.00019131,2]
[350267862,1737753039217,-500.0,0.00019131,2]
[350267863,1737753039226,-500.0,0.00019131,2]
[350267864,1737753039237,-500.0,0.00019131,2]
[350267865,1737753039249,-500.0,0.00019131,2]
[350267866,1737753039259,-500.0,0.00019131,2]
[350267867,1737753039269,-500.0,0.00019131,2]
[350267868,1737753039279,-500.0,0.00019131,2]
[350267869,1737753039288,-500.0,0.00019131,2]
[350267870,1737753039297,-488.07048772,0.00019131,2]
[350267871,1737753039306,-500.0,0.00019131,2]
[350267872,1737753039316,-500.0,0.00019131,2]
[350267873,1737753039325,-500.0,0.00019131,2]
[350267874,1737753039335,-500.0,0.00019131,2]
[350267875,1737753039345,-500.0,0.00019131,2]
[350267876,1737753039354,-500.0,0.00019131,2]
[350267877,1737753039366,-500.0,0.00019131,2]
[350267878,1737753039375,-500.0,0.00019131,2]
[350267880,1737753039385,-500.0,0.00019131,2]
[350267882,1737753039396,-500.0,0.00019131,2]
[350267883,1737753039406,-160.88379766,0.00019131,2]
[350267884,1737753039415,-500.0,0.00019131,2]
[350267885,1737753039428,-500.0,0.00019131,2]
[350267886,1737753039438,-500.0,0.00019131,2]
[350267887,1737753039448,-500.0,0.00019131,2]
[350267888,1737753039458,-500.0,0.00019131,2]
[350267889,1737753039468,-500.0,0.00019131,2]
[350267890,1737753039477,-500.0,0.00019131,2]
[350267891,1737753039487,-500.0,0.00019131,2]
[350267892,1737753039497,-500.0,0.00019131,2]
[350267893,1737753039508,-500.0,0.00019131,2]
[350267894,1737753039517,-500.0,0.00019131,2]
[350267895,1737753039527,-500.0,0.00019131,2]
[350267896,1737753039537,-242.00170093,0.00019131,2]
[350267897,1737753039547,-500.0,0.00019131,2]
[350267898,1737753039556,-205.64702266,0.00019131,2]
[350267899,1737753039567,-500.0,0.00019131,2]
[350267900,1737753039577,-500.0,0.00019131,2]
[350267901,1737753039586,-500.0,0.00019131,2]
[350267902,1737753039596,-500.0,0.00019131,2]
[350267903,1737753039606,-500.0,0.00019131,2]
[350267904,1737753039617,-182.6104028,0.00019131,2]
[350267905,1737753039626,-500.0,0.00019131,2]
[350267906,1737753039635,-500.0,0.00019131,2]
[350267907,1737753039646,-500.0,0.00019131,2]
[350267908,1737753039656,-500.0,0.00019131,2]
[350267909,1737753039666,-500.0,0.00019131,2]
[350267910,1737753039678,-500.0,0.00019131,2]
[350267911,1737753039689,-500.0,0.00019131,2]
[350267912,1737753039699,-500.0,0.00019131,2]
[350267913,1737753039709,-500.0,0.00019131,2]
[350267914,1737753039719,-500.0,0.00019131,2]
[350267915,1737753039729,-500.0,0.00019131,2]
[350267916,1737753039739,-500.0,0.00019131,2]
[350267917,1737753039749,-500.0,0.00019131,2]
[350267918,1737753039758,-500.0,0.00019131,2]
[350267919,1737753039768,-506.54302831,0.00019131,2]
[350267920,1737753039781,-500.0,0.00019131,2]
[350267921,1737753039791,-500.0,0.00019131,2]
[350267922,1737753039800,-500.0,0.00019131,2]
[350267923,1737753039809,-500.0,0.00019131,2]
[350267924,1737753039819,-500.0,0.00019131,2]
[350267925,1737753039828,-500.0,0.00019131,2]
[350267926,1737753039838,-500.0,0.00019131,2]
[350267927,1737753039847,-502.84135481,0.00019131,2]
[350267928,1737753039856,-603.67151919,0.00019131,2]
[350267929,1737753039866,-593.51436777,0.00019131,2]
[350267930,1737753039875,-500.0,0.00019131,2]
[350267931,1737753039884,-500.0,0.00019131,2]
[350267932,1737753039894,-500.0,0.00019131,2]
[350267933,1737753039904,-500.0,0.00019131,2]
[350267934,1737753039913,-639.8,0.00019131,2]
[350267935,1737753039924,-500.0,0.00019131,2]
[350267936,1737753039934,-500.0,0.00019131,2]
[350267937,1737753039943,-500.0,0.00019131,2]
[350267938,1737753039952,-500.0,0.00019131,2]
[350267939,1737753039962,-500.0,0.00019131,2]
[350267940,1737753039972,-500.0,0.00019131,2]
[350267941,1737753039981,-500.0,0.00019131,2]
[350267942,1737753039991,-434.17,0.00019131,2]
[350267943,1737753040000,-554.0240517,0.00019131,2]
[350267944,1737753040009,-500.0,0.00019131,2]
[350267945,1737753040019,-500.0,0.00019131,2]
[350267947,1737753040029,-500.0,0.00019131,2]
[350267949,1737753040039,-500.0,0.00019131,2]
[350267951,1737753040049,-500.0,0.00019131,2]
[350267953,1737753040058,-500.0,0.00019131,2]
[350267955,1737753040068,-759.17,0.00019131,2]
[350267957,1737753040077,-500.0,0.00019131,2]
[350267959,1737753040087,-500.0,0.00019131,2]
[350267961,1737753040096,-500.0,0.00019131,2]
[350267963,1737753040106,-500.0,0.00019131,2]
[350267965,1737753040116,-500.0,0.00019131,2]
[350267967,1737753040125,-500.0,0.00019131,2]
[350267969,1737753040134,-500.0,0.00019131,2]
[350267971,1737753040143,-500.0,0.00019131,2]
[350267973,1737753040152,-500.0,0.00019131,2]
[350267975,1737753040161,-598.9,0.00019131,2]
[350267977,1737753040170,-500.0,0.00019131,2]
[350267979,1737753040179,-500.0,0.00019131,2]
[350267980,1737753040188,-500.0,0.00019131,2]
[350267982,1737753040198,-500.0,0.00019131,2]
[350267983,1737753040208,-500.0,0.00019131,2]
[350267984,1737753040218,-500.0,0.00019131,2]
[350267985,1737753040228,-500.0,0.00019131,2]
[350267986,1737753040237,-500.0,0.00019131,2]
[350267987,1737753040248,-601.13,0.00019131,2]
[350267988,1737753040258,-381.14479947,0.00019131,2]
[350267990,1737753040268,-1086.23,0.00019131,2]
[350267992,1737753040277,-500.0,0.00019131,2]
[350267994,1737753040287,-497.97589825,0.00019131,2]
[350267995,1737753040296,-500.0,0.00019131,2]
[350267997,1737753040306,-568.93,0.00019131,2]
[350267999,1737753040315,-500.0,0.00019131,2]
[350268002,1737753040328,-500.0,0.00019131,2]
[350268004,1737753040337,-206.6156386,0.00019131,2]
[350268006,1737753040348,-500.0,0.00019131,2]
[350268007,1737753040363,-500.0,0.00019131,2]
[350268009,1737753040372,-500.0,0.00019131,2]
[350268011,1737753040381,-500.0,0.00019131,2]
[350268013,1737753040390,-500.0,0.00019131,2]
[350268015,1737753040399,-500.0,0.00019131,2]
[350268017,1737753040409,-482.59231663,0.00019131,2]
[350268019,1737753040420,-500.0,0.00019131,2]
[350268021,1737753040429,-500.0,0.00019131,2]
[350268024,1737753040439,-500.0,0.00019131,2]
[350268025,1737753040448,-642.04,0.00019131,2]
[350268027,1737753040458,-501.80002644,0.00019131,2]
[350268029,1737753040467,-550.79630061,0.00019131,2]
[350268031,1737753040477,-500.0,0.00019131,2]
[350268033,1737753040486,-500.0,0.00019131,2]
[350268035,1737753040496,-501.33762575,0.00019131,2]
[350268037,1737753040505,-1086.83,0.00019131,2]
[350268039,1737753040514,-500.0,0.00019131,2]
[350268041,1737753040523,-500.0,0.00019131,2]
[350268043,1737753040533,-500.0,0.00019131,2]
[350268045,1737753040542,-500.0,0.00019131,2]
[350268047,1737753040552,-500.0,0.00019131,2]
[350268049,1737753040561,-500.0,0.00019131,2]
[350268051,1737753040572,-225.60049379,0.00019131,2]
[350268053,1737753040581,-500.0,0.00019131,2]
[350268055,1737753040590,-501.79615603,0.00019131,2]
[350268057,1737753040601,-500.0,0.00019131,2]
[350268059,1737753040613,-500.0,0.00019131,2]
[350268061,1737753040623,-500.0,0.00019131,2]
[350268063,1737753040633,-500.0,0.00019131,2]
[350268065,1737753040643,-500.0,0.00019131,2]
[350268067,1737753040653,-500.0,0.00019131,2]
[350268069,1737753040662,-500.0,0.00019131,2]
[350268071,1737753040675,-500.0,0.00019131,2]
[350268073,1737753040684,-711.68,0.00019131,2]
[350268075,1737753040693,-500.0,0.00019131,2]
[350268077,1737753040702,-500.0,0.00019131,2]
[350268079,1737753040712,-500.0,0.00019131,2]
[350268081,1737753040721,-302.5921796,0.00019131,2]
[350268083,1737753040730,-500.0,0.00019131,2]
[350268085,1737753040739,-1285.89,0.00019131,2]
[350268087,1737753040748,-500.0,0.00019131,2]
[350268089,1737753040758,-500.0,0.00019131,2]
[350268091,1737753040767,-500.0,0.00019131,2]
[350268093,1737753040776,-735.48,0.00019131,2]
[350268095,1737753040786,-500.0,0.00019131,2]
[350268096,1737753040795,-383.07963243,0.00019131,2]
[350268099,1737753040804,-500.0,0.00019131,2]
[350268100,1737753040814,-209.54264809,0.00019131,2]
[350268102,1737753040824,-500.0,0.00019131,2]
[350268105,1737753040833,-500.0,0.00019131,2]
[350268107,1737753040843,-500.0,0.00019131,2]
[350268108,1737753040852,-500.0,0.00019131,2]
[350268110,1737753040862,-500.0,0.00019131,2]
[350268113,1737753040871,-500.0,0.00019131,2]
[350268114,1737753040881,-500.0,0.00019131,2]
[350268117,1737753040891,-500.0,0.00019131,2]
[350268118,1737753040900,-500.0,0.00019131,2]
[350268120,1737753040909,-500.0,0.00019131,2]
[350268122,1737753040918,-500.0,0.00019131,2]
[350268125,1737753040929,-1165.75,0.00019131,2]
[350268126,1737753040938,-500.0,0.00019131,2]
[350268128,1737753040947,-500.0,0.00019131,2]
[350268130,1737753040957,-500.0,0.00019131,2]
[350268132,1737753040966,-500.0,0.00019131,2]
[350268134,1737753040975,-500.0,0.00019131,2]
[350268136,1737753040983,-500.0,0.00019131,2]
[350268138,1737753040992,-500.0,0.00019131,2]
[350268140,1737753041004,-500.0,0.00019131,2]
[350268142,1737753041013,-500.0,0.00019131,2]
[350268144,1737753041022,-500.0,0.00019131,2]
[350268146,1737753041031,-500.0,0.00019131,2]
[350268148,1737753041041,-500.0,0.00019131,2]
[350268150,1737753041049,-500.0,0.00019131,2]
[350268152,1737753041059,-500.0,0.00019131,2]
[350268154,1737753041068,-500.0,0.00019131,2]
[350268156,1737753041077,-500.0,0.00019131,2]
[350268158,1737753041086,-500.0,0.00019131,2]
[350268160,1737753041095,-500.0,0.00019131,2]
[350268162,1737753041105,-500.0,0.00019131,2]
[350268164,1737753041114,-515.08,0.00019131,2]
[350268166,1737753041124,-500.0,0.00019131,2]
[350268168,1737753041133,-500.0,0.00019131,2]
[350268170,1737753041143,-500.0,0.00019131,2]
[350268172,1737753041152,-500.0,0.00019131,2]
[350268173,1737753041162,-704.15,0.00019131,2]
[350268175,1737753041171,-500.0,0.00019131,2]
[350268177,1737753041181,-500.0,0.00019131,2]
[350268180,1737753041191,-500.0,0.00019131,2]
[350268182,1737753041200,-1747.18,0.00019131,2]
[350268184,1737753041217,-500.0,0.00019131,2]
[350268186,1737753041229,-500.0,0.00019131,2]
[350268188,1737753041238,-500.0,0.00019131,2]
[350268190,1737753041248,-500.0,0.00019131,2]
[350268192,1737753041257,-500.0,0.00019131,2]
[350268194,1737753041267,-550.1011808,0.00019132,2]
[350268196,1737753041276,-513.07235936,0.00019132,2]
[350268198,1737753041285,-500.0,0.00019132,2]
[350268200,1737753041295,-500.0,0.00019132,2]
[350268202,1737753041304,-422.59635745,0.00019132,2]
[350268204,1737753041312,-500.0,0.00019132,2]
[350268206,1737753041322,-507.09917656,0.00019132,2]
[350268207,1737753041331,-500.0,0.00019132,2]
[350268209,1737753041339,-500.0,0.00019132,2]
[350268210,1737753041348,-632.68666108,0.00019132,2]
[350268211,1737753041358,-500.0,0.00019132,2]
[350268212,1737753041367,-500.0,0.00019132,2]
[350268213,1737753041377,-500.0,0.00019132,2]
[350268214,1737753041387,-509.89847375,0.00019132,2]
[350268215,1737753041396,-500.0,0.00019132,2]
[350268217,1737753041406,-500.0,0.00019132,2]
[350268219,1737753041415,-500.0,0.00019132,2]
[350268221,1737753041426,-500.0,0.00019132,2]
[350268223,1737753041435,-500.0,0.00019132,2]
[350268224,1737753041444,-500.0,0.00019132,2]
[350268225,1737753041454,-500.0,0.00019132,2]
[350268227,1737753041463,-500.0,0.00019132,2]
[350268229,1737753041474,-500.0,0.00019132,2]
[350268231,1737753041484,-500.0,0.00019132,2]
[350268233,1737753041495,-500.0,0.00019132,2]
[350268235,1737753041504,-500.0,0.00019132,2]
[350268237,1737753041514,-500.0,0.00019132,2]
[350268239,1737753041525,-500.0,0.00019132,2]
[350268241,1737753041535,-271.23105977,0.00019132,2]
[350268242,1737753041544,-608.49427626,0.00019132,2]
[350268244,1737753041554,-500.0,0.00019132,2]
[350268246,1737753041564,-500.0,0.00019132,2]
[350268248,1737753041575,-500.0,0.00019132,2]
[350268250,1737753041586,-506.64335937,0.00019132,2]
[350268252,1737753041596,-500.0,0.00019132,2]
[350268254,1737753041607,-500.0,0.00019132,2]
[350268256,1737753041617,-500.0,0.00019132,2]
[350268258,1737753041627,-500.0,0.00019132,2]
[350268260,1737753041636,-158.24717016,0.00019132,2]
[350268263,1737753041647,-500.73421465,0.00019132,2]
[350268264,1737753041659,-500.0,0.00019132,2]
[350268266,1737753041668,-500.0,0.00019132,2]
[350268268,1737753041685,-500.0,0.00019132,2]
[350268270,1737753041694,-503.51413611,0.00019132,2]
[350268272,1737753041703,-500.0,0.00019132,2]
[350268274,1737753041713,-500.0,0.00019132,2]
[350268277,1737753041722,-506.43526092,0.00019132,2]
[350268279,1737753041733,-500.0,0.00019132,2]
[350268280,1737753041742,-508.70125497,0.00019132,2]
[350268283,1737753041751,-335.40566435,0.00019132,2]
[350268285,1737753041761,-504.59535543,0.00019132,2]
[350268286,1737753041770,-516.02862644,0.00019132,2]
[350268288,1737753041779,-505.10532226,0.00019132,2]
[350268290,1737753041789,-500.0,0.00019132,2]
[350268292,1737753041798,-505.06600671,0.00019132,2]
[350268294,1737753041807,-500.0,0.00019132,2]
[350268296,1737753041816,-504.63811029,0.00019132,2]
[350268298,1737753041825,-500.0,0.00019132,2]
[350268300,1737753041835,-500.0,0.00019132,2]
[350268302,1737753041845,-500.0,0.00019132,2]